bitfinex-derivatives/quotes_BTCF0:USTF0_20260315
["timestamp","ask_amount","ask_price","bid_price","bid_amount"]
[1773556545325,0.041956,71492.0,71479.0,0.041963]
[1773556545530,0.041956,71492.0,71480.0,0.01679717]
[1773556545735,0.041956,71492.0,71480.0,0.0014]
[1773556550834,0.041956,71492.0,71479.0,0.05736017]
[1773556551038,0.041956,71492.0,71480.0,0.0014]
[1773556551340,0.06791896,71490.0,71477.0,0.041964]
[1773556551534,0.06791896,71490.0,71478.0,0.0014]
[1773556552140,0.06791896,71490.0,71477.0,0.041964]
[1773556552332,0.06791896,71490.0,71478.0,0.0014]
[1773556553240,0.06791896,71490.0,71478.0,0.043364]
[1773556554539,0.10987596,71490.0,71478.0,0.043364]
[1773556554946,0.20887151,71489.0,71478.0,0.043364]
[1773556555240,0.20887151,71488.0,71478.0,0.043364]
[1773556555429,0.10987596,71490.0,71478.0,0.043364]
[1773556555742,0.20889287,71489.0,71479.0,0.0014]
[1773556555944,0.20889287,71488.0,71479.0,0.0014]
[1773556556237,0.10987596,71490.0,71479.0,0.0014]
[1773556556431,0.20892194,71489.0,71479.0,0.0014]
[1773556556631,0.20892194,71488.0,71480.0,0.0014]
[1773556556834,0.10987596,71490.0,71480.0,0.0014]
[1773556557143,0.10987596,71490.0,71470.0,0.08811154]
[1773556557144,0.20892184,71489.0,71481.0,0.0014]
[1773556557446,0.20892184,71488.0,71482.0,0.0014]
[1773556557755,0.10987596,71490.0,71483.0,0.0014]
[1773556558036,0.20897492,71489.0,71484.0,0.0014]
[1773556558238,0.06480479,71489.0,71485.0,0.0014]
[1773556558442,0.06480479,71489.0,71486.0,0.0014]
[1773556558736,0.06480479,71489.0,71487.0,0.0014]
[1773556558933,0.20896542,71488.0,71476.0,0.041965]
[1773556559140,0.06480479,71489.0,71477.0,0.0014]
[1773556559443,0.2089561,71488.0,71478.0,0.0014]
[1773556559744,0.06480479,71489.0,71478.0,0.0014]
[1773556559940,0.20895646,71488.0,71479.0,0.0014]
[1773556560141,0.06480479,71489.0,71479.0,0.0014]
[1773556560444,0.20895543,71488.0,71480.0,0.0014]
[1773556560637,0.06480479,71489.0,71481.0,0.0014]
[1773556560838,0.20895505,71488.0,71481.0,0.0014]
[1773556561038,0.06480479,71489.0,71481.0,0.0014]
[1773556561239,0.20894783,71488.0,71481.0,0.0014]
[1773556561439,0.041957,71490.0,71481.0,0.0014]
[1773556561744,0.2089422,71489.0,71481.0,0.0014]
[1773556561944,0.2089422,71488.0,71481.0,0.0014]
[1773556562144,0.041957,71490.0,71481.0,0.0014]
[1773556562346,0.20893913,71489.0,71481.0,0.0014]
[1773556562547,0.20893913,71488.0,71481.0,0.0014]
[1773556562747,0.041957,71490.0,71481.0,0.0014]
[1773556562944,0.20893956,71489.0,71481.0,0.0014]
[1773556563247,0.20893956,71488.0,71481.0,0.0014]
[1773556563448,0.041957,71490.0,71481.0,0.0014]
[1773556563647,0.20893459,71489.0,71481.0,0.0014]
[1773556563849,0.20893459,71488.0,71481.0,0.0014]
[1773556564048,0.041957,71490.0,71481.0,0.0014]
[1773556564347,0.20904479,71489.0,71481.0,0.0014]
[1773556564551,0.20904479,71488.0,71481.0,0.0014]
[1773556564739,0.041957,71490.0,71481.0,0.0014]
[1773556564936,0.20904344,71489.0,71481.0,0.0014]
[1773556565140,0.041957,71490.0,71481.0,0.0014]
[1773556565347,0.20904418,71489.0,71481.0,0.0014]
[1773556565548,0.041957,71490.0,71481.0,0.0014]
[1773556565747,0.20904191,71489.0,71481.0,0.0014]
[1773556565951,0.041957,71490.0,71481.0,0.0014]
[1773556566250,0.209042,71489.0,71481.0,0.0014]
[1773556566442,0.041957,71490.0,71481.0,0.0014]
[1773556566641,0.20904197,71489.0,71481.0,0.0014]
[1773556566937,0.041957,71490.0,71481.0,0.0014]
[1773556567142,0.2090557,71489.0,71481.0,0.0014]
[1773556567343,0.041957,71490.0,71481.0,0.0014]
[1773556567551,0.20907582,71489.0,71481.0,0.0014]
[1773556567752,0.20907582,71488.0,71481.0,0.0014]
[1773556567944,0.041957,71490.0,71481.0,0.0014]
[1773556568147,0.20907757,71489.0,71481.0,0.0014]
[1773556568343,0.20907757,71488.0,71481.0,0.0014]
[1773556568543,0.041957,71490.0,71481.0,0.0014]
[1773556568738,0.20908733,71489.0,71481.0,0.0014]
[1773556568942,0.20908733,71488.0,71481.0,0.0014]
[1773556569143,0.041957,71490.0,71481.0,0.0014]
[1773556569351,0.20916519,71489.0,71481.0,0.0014]
[1773556569551,0.20916519,71488.0,71481.0,0.0014]
[1773556569755,0.041957,71490.0,71481.0,0.0014]
[1773556569950,0.25112513,71489.0,71481.0,0.0014]
[1773556570247,0.25112513,71489.0,71464.0,0.30784]
[1773556570248,0.10676679,71482.0,71468.0,0.04197]
[1773556570453,0.10676679,71482.0,71469.0,0.0014]
[1773556570654,0.06480479,71481.0,71469.0,0.0014]
[1773556571156,0.06480479,71481.0,71469.0,0.043369]
[1773556571552,0.06480479,71481.0,71469.0,0.042969]
[1773556571752,0.06480479,71481.0,71470.0,0.0014]
[1773556572749,0.12495295,71497.0,71455.0,0.0669015]
[1773556572750,0.041969,71471.0,71455.0,0.0669015]
[1773556572951,0.06480479,71479.0,71460.0,0.041974]
[1773556572952,0.041967,71474.0,71460.0,0.041974]
[1773556573258,0.041967,71474.0,71461.0,0.0014]
[1773556573456,0.041967,71474.0,71462.0,0.0014]
[1773556575449,0.041967,71474.0,71461.0,0.041974]
[1773556575651,0.041967,71474.0,71462.0,0.0014]
[1773556576354,0.20823348,71473.0,71455.0,0.0669015]
[1773556576551,0.27303827,71472.0,71458.0,0.041975]
[1773556576752,0.2082308,71471.0,71458.0,0.041975]
[1773556576951,0.06480479,71472.0,71458.0,0.041975]
[1773556577151,0.20823079,71471.0,71458.0,0.041975]
[1773556577347,0.06480479,71472.0,71458.0,0.041975]
[1773556577953,0.10677279,71472.0,71458.0,0.041975]
[1773556582250,0.06480479,71472.0,71458.0,0.041975]
[1773556582452,0.041969,71471.0,71458.0,0.041975]
[1773556584463,0.06140146,71477.0,71456.0,0.0014]
[1773556584769,0.041967,71473.0,71459.0,0.041975]
[1773556585169,0.041968,71472.0,71459.0,0.041975]
[1773556586865,0.041969,71471.0,71457.0,0.041976]
[1773556587467,0.041969,71471.0,71458.0,0.041975]
[1773556588461,0.08811154,71480.0,71448.0,0.00015324]
[1773556588462,0.06140146,71470.0,71448.0,0.00015324]
[1773556588659,0.06140146,71469.0,71449.0,0.0014]
[1773556589963,0.041972,71466.0,71452.0,0.041979]
[1773556590163,0.041972,71466.0,71453.0,0.0014]
[1773556590369,0.06140146,71469.0,71453.0,0.0014]
[1773556590370,0.041972,71465.0,71453.0,0.0014]
[1773556590763,0.041973,71464.0,71453.0,0.0014]
[1773556591164,0.041971,71466.0,71453.0,0.0014]
[1773556592261,0.06140146,71469.0,71454.0,0.0014]
[1773556592467,0.06140146,71467.0,71448.0,0.00015324]
[1773556592665,0.06140146,71464.0,71449.0,0.0014]
[1773556593267,0.06140146,71464.0,71450.0,0.0014]
[1773556594772,0.041975,71461.0,71450.0,0.0014]
[1773556595458,0.041975,71460.0,71450.0,0.0014]
[1773556604983,0.21267616,71459.0,71450.0,0.0014]
[1773556605176,0.041975,71460.0,71450.0,0.0014]
[1773556605382,0.21268923,71459.0,71450.0,0.0014]
[1773556605582,0.041976,71459.0,71450.0,0.0014]
[1773556606283,0.21270714,71458.0,71450.0,0.0014]
[1773556606471,0.041976,71459.0,71450.0,0.0014]
[1773556606674,0.041974,71461.0,71450.0,0.0014]
[1773556606884,0.06140146,71484.0,71456.0,0.06467754]
[1773556607086,0.041969,71470.0,71460.0,0.08811154]
[1773556607287,0.041967,71473.0,71461.0,0.0014]
[1773556607583,0.041968,71472.0,71461.0,0.0014]
[1773556615393,0.041969,71471.0,71461.0,0.0014]
[1773556616190,0.05942923,71475.0,71461.0,0.0014]
[1773556616191,0.041967,71474.0,71461.0,0.0014]
[1773556616789,0.05942923,71475.0,71461.0,0.0014]
[1773556616790,0.041968,71473.0,71461.0,0.0014]
[1773556618398,0.041968,71472.0,71461.0,0.0014]
[1773556618999,0.041968,71472.0,71460.0,0.08813215]
[1773556619198,0.041968,71472.0,71461.0,0.0014]
[1773556620299,0.041969,71471.0,71461.0,0.0014]
[1773556620694,0.041969,71470.0,71461.0,0.0014]
[1773556620895,0.10139823,71470.0,71462.0,0.0014]
[1773556621995,0.05942923,71469.0,71450.0,0.08813215]
[1773556622203,0.041975,71460.0,71451.0,0.0014]
[1773556623899,0.041975,71460.0,71448.0,0.00015324]
[1773556624202,0.041975,71460.0,71452.0,0.0014]
[1773556625904,0.041975,71460.0,71451.0,0.001]
[1773556626103,0.041975,71460.0,71452.0,0.0014]
[1773556626402,0.041975,71460.0,71452.0,0.0024]
[1773556627791,0.10140323,71462.0,71452.0,0.0024]
[1773556627990,0.041974,71462.0,71452.0,0.0024]
[1773556628196,0.05942923,71466.0,71453.0,0.041979]
[1773556628197,0.041971,71466.0,71453.0,0.041979]
[1773556628906,0.041971,71466.0,71452.0,0.0014]
[1773556630312,0.05878383,71476.0,71455.0,0.10377399]
[1773556630508,0.20574969,71475.0,71455.0,0.10377399]
[1773556630698,0.04197,71468.0,71455.0,0.10377399]
[1773556631001,0.20574969,71467.0,71455.0,0.10377399]
[1773556631202,0.20574969,71466.0,71452.0,0.043379]
[1773556631403,0.05817791,71473.0,71453.0,0.06179699]
[1773556631706,0.26392851,71472.0,71459.0,0.041975]
[1773556631899,0.2057506,71471.0,71459.0,0.041975]
[1773556632106,0.2057506,71471.0,71460.0,0.0014]
[1773556632305,0.2057506,71470.0,71460.0,0.0014]
[1773556632504,0.2057506,71469.0,71460.0,0.0014]
[1773556632808,0.2057506,71468.0,71460.0,0.0014]
[1773556632994,0.041968,71473.0,71460.0,0.0014]
[1773556633200,0.20576684,71472.0,71460.0,0.0014]
[1773556633400,0.20576684,71471.0,71460.0,0.0014]
[1773556633608,0.20576684,71470.0,71460.0,0.0014]
[1773556633803,0.20576684,71469.0,71460.0,0.0014]
[1773556634004,0.20576684,71468.0,71460.0,0.0014]
[1773556634203,0.041968,71473.0,71460.0,0.0014]
[1773556634407,0.20579717,71472.0,71460.0,0.0014]
[1773556634607,0.20579717,71471.0,71460.0,0.0014]
[1773556634909,0.20579717,71470.0,71460.0,0.043374]
[1773556635111,0.20579717,71469.0,71460.0,0.043374]
[1773556635310,0.20579717,71468.0,71460.0,0.043374]
[1773556635509,0.20579717,71467.0,71460.0,0.043374]
[1773556635710,0.041966,71476.0,71460.0,0.0014]
[1773556635911,0.20582114,71475.0,71461.0,0.041974]
[1773556636107,0.20582114,71474.0,71461.0,0.041974]
[1773556636414,0.20582114,71473.0,71461.0,0.041974]
[1773556636712,0.20582114,71472.0,71461.0,0.041974]
[1773556636911,0.20582114,71471.0,71461.0,0.041974]
[1773556637103,0.20582114,71470.0,71461.0,0.041974]
[1773556637299,0.20582114,71469.0,71461.0,0.041974]
[1773556637512,0.041967,71474.0,71461.0,0.041974]
[1773556637815,0.20583811,71473.0,71461.0,0.041974]
[1773556638114,0.05641414,71471.0,71459.0,0.041975]
[1773556638304,0.20583811,71470.0,71459.0,0.041975]
[1773556638505,0.05641414,71471.0,71460.0,0.0014]
[1773556638708,0.19893943,71470.0,71460.0,0.0014]
[1773556638908,0.05641414,71471.0,71460.0,0.0014]
[1773556639108,0.19893943,71470.0,71460.0,0.0014]
[1773556639308,0.05641414,71471.0,71460.0,0.0014]
[1773556639508,0.25469502,71470.0,71460.0,0.0014]
[1773556639716,0.19893577,71469.0,71460.0,0.0014]
[1773556639916,0.05575718,71470.0,71460.0,0.0014]
[1773556640222,0.19893862,71469.0,71460.0,0.0014]
[1773556640425,0.05575718,71470.0,71460.0,0.0014]
[1773556640718,0.19893814,71469.0,71460.0,0.0014]
[1773556641023,0.05575718,71470.0,71460.0,0.0014]
[1773556641220,0.19893814,71469.0,71460.0,0.0014]
[1773556641414,0.05575718,71470.0,71460.0,0.0014]
[1773556641607,0.1989375,71469.0,71460.0,0.0014]
[1773556641806,0.05575718,71470.0,71460.0,0.0014]
[1773556642013,0.19893739,71469.0,71460.0,0.043374]
[1773556642208,0.05575718,71470.0,71460.0,0.043374]
[1773556642414,0.19893695,71469.0,71460.0,0.043374]
[1773556642614,0.05575718,71470.0,71460.0,0.043374]
[1773556642813,0.19893724,71469.0,71460.0,0.043374]
[1773556643014,0.05575718,71470.0,71460.0,0.043374]
[1773556643215,0.19893724,71469.0,71460.0,0.043374]
[1773556643415,0.05575718,71470.0,71460.0,0.043374]
[1773556643618,0.19893627,71469.0,71460.0,0.043374]
[1773556643918,0.05575718,71470.0,71460.0,0.043374]
[1773556644218,0.19893627,71469.0,71460.0,0.043374]
[1773556644521,0.05575718,71470.0,71460.0,0.043374]
[1773556644717,0.19893594,71469.0,71460.0,0.043374]
[1773556644919,0.05575718,71470.0,71460.0,0.043374]
[1773556645122,0.19893594,71469.0,71460.0,0.043374]
[1773556645320,0.19893594,71468.0,71460.0,0.043374]
[1773556645521,0.05575718,71470.0,71460.0,0.043374]
[1773556645723,0.19893552,71469.0,71460.0,0.043374]
[1773556646019,0.19893552,71468.0,71460.0,0.043374]
[1773556646222,0.05575718,71470.0,71460.0,0.043374]
[1773556646521,0.19894699,71469.0,71460.0,0.043374]
[1773556646723,0.19894699,71468.0,71460.0,0.043374]
[1773556647015,0.05575718,71470.0,71460.0,0.043374]
[1773556647216,0.19894699,71469.0,71460.0,0.043374]
[1773556647421,0.19894699,71468.0,71460.0,0.043374]
[1773556647622,0.05575718,71470.0,71460.0,0.043374]
[1773556647822,0.19895995,71469.0,71460.0,0.043374]
[1773556648122,0.19895995,71468.0,71460.0,0.043374]
[1773556648313,0.05575718,71470.0,71460.0,0.043374]
[1773556648514,0.19903005,71469.0,71460.0,0.041974]
[1773556648816,0.19903005,71468.0,71461.0,0.0014]
[1773556649120,0.19903005,71467.0,71461.0,0.0014]
[1773556649322,0.05575718,71470.0,71461.0,0.0014]
[1773556649518,0.19907943,71469.0,71461.0,0.0014]
[1773556649719,0.19907943,71468.0,71461.0,0.0014]
[1773556650019,0.05575718,71470.0,71461.0,0.0014]
[1773556650219,0.19906539,71469.0,71461.0,0.0014]
[1773556650418,0.19906539,71468.0,71461.0,0.0014]
[1773556650614,0.05220073,71469.0,71458.0,0.041975]
[1773556650921,0.05220073,71467.0,71459.0,0.0014]
[1773556651317,0.05220073,71467.0,71460.0,0.0014]
[1773556651511,0.19909273,71466.0,71448.0,0.00015324]
[1773556651715,0.05151609,71465.0,71449.0,0.0014]
[1773556652119,0.05151609,71465.0,71448.0,0.00015324]
[1773556652320,0.05151609,71465.0,71449.0,0.0014]
[1773556652823,0.05151609,71465.0,71450.0,0.0014]
[1773556653120,0.05151609,71465.0,71454.0,0.041978]
[1773556653325,0.05151609,71465.0,71455.0,0.043377]
[1773556654228,0.05151609,71465.0,71455.0,0.041977]
[1773556654424,0.05151609,71465.0,71456.0,0.0014]
[1773556654926,0.05151609,71465.0,71457.0,0.0014]
[1773556655225,0.05151609,71465.0,71448.0,0.00015324]
[1773556655417,0.04920894,71450.0,71442.0,0.0014]
[1773556655624,0.041984,71445.0,71443.0,0.0014]
[1773556655927,0.041985,71444.0,71431.0,0.00069998]
[1773556656127,0.041985,71444.0,71432.0,0.0014]
[1773556656320,0.00015324,71443.0,71432.0,0.0014]
[1773556656520,0.00015324,71443.0,71435.0,0.0028]
[1773556658421,0.04143892,71444.0,71435.0,0.0028]
[1773556658622,0.041983,71446.0,71435.0,0.0028]
[1773556658817,0.041984,71444.0,71435.0,0.0028]
[1773556659236,0.041984,71444.0,71431.0,0.00069998]
[1773556659237,0.09718012,71444.0,71431.0,0.00069998]
[1773556659426,0.09718012,71444.0,71432.0,0.0014]
[1773556659427,0.05519612,71443.0,71432.0,0.0014]
[1773556663323,0.05449805,71443.0,71432.0,0.0014]
[1773556663528,0.05519612,71442.0,71433.0,0.0014]
[1773556665135,0.05519612,71459.0,71434.0,0.05805341]
[1773556665337,0.05519612,71457.0,71434.0,0.05805341]
[1773556665628,0.03481367,71459.0,71434.0,0.05805341]
[1773556665629,0.05519612,71455.0,71434.0,0.05805341]
[1773556665834,0.21402892,71454.0,71437.0,0.0028]
[1773556666031,0.04198,71451.0,71437.0,0.044788]
[1773556666226,0.041981,71450.0,71437.0,0.044788]
[1773556666831,0.041979,71453.0,71439.0,0.041987]
[1773556667333,0.041979,71453.0,71440.0,0.0014]
[1773556667725,0.05519612,71452.0,71439.0,0.041987]
[1773556667922,0.04198,71451.0,71440.0,0.0014]
[1773556670335,0.05519612,71450.0,71440.0,0.0014]
[1773556671637,0.04198,71451.0,71440.0,0.0014]
[1773556674338,0.09604826,71451.0,71440.0,0.0014]
[1773556676740,0.04198,71451.0,71440.0,0.0014]
[1773556679348,0.041979,71453.0,71440.0,0.0014]
[1773556679544,0.26505364,71452.0,71440.0,0.0014]
[1773556679749,0.041981,71450.0,71440.0,0.0014]
[1773556679947,0.041981,71450.0,71440.0,0.0042]
[1773556680244,0.041975,71460.0,71447.0,0.041982]
[1773556680449,0.041975,71460.0,71441.0,0.06129416]
[1773556680450,0.26508552,71459.0,71448.0,0.0014]
[1773556680649,0.22310952,71458.0,71449.0,0.0014]
[1773556680850,0.041976,71458.0,71449.0,0.0014]
[1773556681245,0.041977,71457.0,71449.0,0.0014]
[1773556681852,0.041977,71457.0,71451.0,0.0028]
[1773556682553,0.0568236,71469.0,71451.0,0.0028]
[1773556682752,0.041976,71459.0,71451.0,0.0028]
[1773556683556,0.041974,71461.0,71451.0,0.0028]
[1773556683744,0.26259998,71460.0,71451.0,0.0028]
[1773556683950,0.22062498,71459.0,71451.0,0.0028]
[1773556685656,0.22062498,71459.0,71449.0,0.0014]
[1773556686656,0.22062498,71459.0,71453.0,0.0028]
[1773556686857,0.041974,71462.0,71453.0,0.0028]
[1773556687048,0.21986681,71461.0,71453.0,0.0028]
[1773556687252,0.041974,71462.0,71453.0,0.0028]
[1773556687449,0.21983518,71461.0,71453.0,0.0028]
[1773556687651,0.041974,71462.0,71453.0,0.0028]
[1773556687847,0.21983711,71461.0,71453.0,0.0028]
[1773556688048,0.041974,71462.0,71453.0,0.0028]
[1773556689057,0.041974,71461.0,71453.0,0.0028]
[1773556689356,0.10105615,71472.0,71454.0,0.041978]
[1773556689559,0.10105615,71472.0,71453.0,0.06129416]
[1773556689560,0.041969,71470.0,71456.0,0.041977]
[1773556689755,0.05908815,71472.0,71460.0,0.08819975]
[1773556690063,0.21979847,71471.0,71464.0,0.0028]
[1773556690262,0.05908815,71472.0,71464.0,0.0028]
[1773556690561,0.21555075,71471.0,71465.0,0.0014]
[1773556690761,0.05908815,71472.0,71465.0,0.0014]
[1773556691060,0.25751755,71471.0,71465.0,0.0014]
[1773556691260,0.041969,71471.0,71465.0,0.0014]
[1773556694160,0.05908815,71472.0,71465.0,0.0014]
[1773556694561,0.10105615,71472.0,71465.0,0.0014]
[1773556698366,0.041967,71474.0,71465.0,0.0014]
[1773556698568,0.041967,71474.0,71465.0,0.0042]
[1773556699061,0.041967,71473.0,71465.0,0.0042]
[1773556700066,0.10105515,71473.0,71465.0,0.0042]
[1773556700562,0.10105515,71473.0,71465.0,0.0014]
[1773556708378,0.05506386,71472.0,71465.0,0.0014]
[1773556709673,0.09703186,71472.0,71465.0,0.0014]
[1773556714078,0.041969,71471.0,71465.0,0.0014]
[1773556714278,0.05506386,71464.0,71440.0,0.14323117]
[1773556714583,0.05506386,71460.0,71449.0,0.041981]
[1773556714883,0.05506386,71459.0,71450.0,0.0014]
[1773556715079,0.05506386,71459.0,71451.0,0.0014]
[1773556715279,0.05506386,71459.0,71452.0,0.0014]
[1773556715487,0.05506386,71459.0,71453.0,0.0014]
[1773556715784,0.05506386,71458.0,71454.0,0.0014]
[1773556716085,0.05506386,71458.0,71455.0,0.0014]
[1773556716286,0.05506386,71458.0,71456.0,0.0014]
[1773556716486,0.05506386,71458.0,71457.0,0.0014]
[1773556716785,0.05506386,71460.0,71457.0,0.0014]
[1773556716986,0.05506386,71460.0,71458.0,0.0014]
[1773556717188,0.05506386,71460.0,71459.0,0.0014]
[1773556717486,0.00974622,71460.0,71459.0,0.0014]
[1773556724292,0.041981,71450.0,71436.0,0.041989]
[1773556724596,0.02280515,71449.0,71437.0,0.0014]
[1773556724789,0.02280515,71468.0,71438.0,0.041988]
[1773556725088,0.02280515,71466.0,71438.0,0.041988]
[1773556725293,0.02287775,71464.0,71438.0,0.041988]
[1773556725495,0.02287775,71462.0,71438.0,0.041988]
[1773556725693,0.02287775,71460.0,71438.0,0.041988]
[1773556725894,0.02287775,71458.0,71438.0,0.041988]
[1773556726194,0.02287775,71456.0,71438.0,0.041988]
[1773556726780,0.041979,71453.0,71439.0,0.041987]
[1773556727695,0.041979,71453.0,71437.0,0.0014]
[1773556729090,0.041979,71453.0,71440.0,0.041986]
[1773556734595,0.04198,71452.0,71440.0,0.041986]
[1773556734799,0.00925416,71451.0,71440.0,0.041986]
[1773556735702,0.08819975,71460.0,71437.0,0.0014]
[1773556735703,0.00801481,71448.0,71437.0,0.043388]
[1773556736609,0.00801481,71448.0,71438.0,0.041987]
[1773556738303,0.04198,71452.0,71439.0,0.041987]
[1773556738510,0.041978,71454.0,71440.0,0.04128584]
[1773556738710,0.20787607,71453.0,71440.0,0.04128584]
[1773556738910,0.041978,71454.0,71441.0,0.041985]
[1773556739112,0.0029319,71457.0,71441.0,0.041985]
[1773556739113,0.041979,71453.0,71441.0,0.041985]
[1773556740211,0.04198,71452.0,71439.0,0.041987]
[1773556741113,0.08819975,71460.0,71439.0,0.041987]
[1773556741412,0.20794378,71459.0,71439.0,0.041987]
[1773556741612,0.20794378,71458.0,71440.0,0.041986]
[1773556741812,0.20794378,71457.0,71440.0,0.041986]
[1773556742013,0.04198,71452.0,71440.0,0.041986]
[1773556744116,0.20803893,71451.0,71440.0,0.041986]
[1773556744407,0.04198,71452.0,71440.0,0.041986]
[1773556744613,0.20803707,71451.0,71440.0,0.041986]
[1773556744814,0.04198,71452.0,71440.0,0.041986]
[1773556747010,0.041979,71454.0,71440.0,0.041986]
[1773556747221,0.041979,71453.0,71440.0,0.041986]
[1773556748122,0.04198,71452.0,71440.0,0.041986]
[1773556762140,0.04337,71468.0,71440.0,0.041986]
[1773556762141,0.04197,71468.0,71442.0,0.041985]
[1773556762339,0.041978,71455.0,71442.0,0.09935594]
[1773556762636,0.25049791,71454.0,71442.0,0.05737094]
[1773556762836,0.041979,71454.0,71442.0,0.05737094]
[1773556763232,0.041979,71454.0,71443.0,0.0014]
[1773556763431,0.04198,71452.0,71443.0,0.0014]
[1773556770527,0.041979,71453.0,71443.0,0.0014]
[1773556770730,0.20855145,71452.0,71443.0,0.0014]
[1773556770928,0.04198,71452.0,71443.0,0.0014]
[1773556774245,0.20856711,71451.0,71443.0,0.0014]
[1773556774538,0.041975,71460.0,71448.0,0.041981]
[1773556774744,0.20856568,71459.0,71450.0,0.08819924]
[1773556775045,0.20856568,71458.0,71451.0,0.0014]
[1773556775245,0.041965,71478.0,71451.0,0.0014]
[1773556775542,0.0014,71489.0,71460.0,0.08819924]
[1773556775740,0.041956,71492.0,71460.0,0.08819924]
[1773556775741,0.0014,71488.0,71461.0,0.0014]
[1773556776337,0.13728036,71489.0,71461.0,0.0014]
[1773556776635,0.08819924,71490.0,71461.0,0.0014]
[1773556777033,0.041969,71470.0,71461.0,0.0014]
[1773556779347,0.04197,71469.0,71461.0,0.0014]
[1773556783145,0.04197,71468.0,71461.0,0.0014]
[1773556791360,0.041971,71467.0,71461.0,0.0014]
[1773556803870,0.041969,71470.0,71461.0,0.0014]
[1773556804467,0.0014,71485.0,71461.0,0.0014]
[1773556804665,0.041968,71472.0,71461.0,0.0014]
[1773556805271,0.0014,71489.0,71461.0,0.0014]
[1773556805869,0.0014,71490.0,71461.0,0.0014]
[1773556806274,0.041967,71473.0,71461.0,0.0014]
[1773556806464,0.041968,71472.0,71461.0,0.0014]
[1773556807865,0.0014,71487.0,71461.0,0.0014]
[1773556808073,0.041966,71475.0,71463.0,0.041973]
[1773556808270,0.041963,71480.0,71466.0,0.041971]
[1773556808464,0.13342134,71490.0,71466.0,0.041971]
[1773556808660,0.0014,71495.0,71466.0,0.041971]
[1773556809063,0.001,71487.0,71466.0,0.041971]
[1773556809283,0.041962,71482.0,71470.0,0.08814851]
[1773556809467,0.041962,71482.0,71471.0,0.0014]
[1773556810068,0.001,71490.0,71471.0,0.0014]
[1773556810270,0.041962,71482.0,71471.0,0.0014]
[1773556812274,0.13629835,71495.0,71471.0,0.0014]
[1773556812478,0.041962,71482.0,71471.0,0.0014]
[1773556813067,0.0014,71495.0,71471.0,0.0014]
[1773556813667,0.0024,71495.0,71471.0,0.0014]
[1773556814080,0.041963,71480.0,71471.0,0.0014]
[1773556817879,0.02555783,71499.0,71471.0,0.0014]
[1773556818079,0.041962,71482.0,71471.0,0.0014]
[1773556819176,0.041963,71481.0,71471.0,0.0014]
[1773556820877,0.041962,71482.0,71471.0,0.0014]
[1773556822379,0.041949,71504.0,71471.0,0.0014]
[1773556822584,0.043349,71504.0,71480.0,0.08814851]
[1773556822779,0.043349,71504.0,71481.0,0.0014]
[1773556822985,0.043349,71504.0,71482.0,0.0014]
[1773556823185,0.041959,71488.0,71483.0,0.0014]
[1773556823587,0.041959,71488.0,71484.0,0.0014]
[1773556824780,0.041959,71488.0,71475.0,0.041966]
[1773556824982,0.041959,71488.0,71477.0,0.0028]
[1773556825389,0.0014,71509.0,71478.0,0.14852125]
[1773556825585,0.041956,71493.0,71480.0,0.13011151]
[1773556825980,0.041956,71493.0,71485.0,0.00280051]
[1773556826182,0.041956,71493.0,71486.0,0.0014]
[1773556826678,0.001,71504.0,71486.0,0.0014]
[1773556826887,0.041955,71494.0,71486.0,0.0014]
[1773556827382,0.041955,71494.0,71486.0,0.00420051]
[1773556828386,0.041956,71493.0,71486.0,0.00420051]
[1773556831691,0.041956,71493.0,71486.0,0.00280051]
[1773556831990,0.041956,71493.0,71487.0,0.0014]
[1773556832886,0.041956,71493.0,71488.0,0.0014]
[1773556833083,0.041956,71493.0,71480.0,0.13011151]
[1773556833288,0.041956,71493.0,71481.0,0.0014]
[1773556840299,0.041956,71492.0,71481.0,0.0014]
[1773556854504,0.0014,71507.0,71481.0,0.0014]
[1773556854710,0.041948,71506.0,71482.0,0.0014]
[1773556854911,0.041959,71487.0,71483.0,0.0014]
[1773556855112,0.041959,71487.0,71484.0,0.0014]
[1773556855311,0.041957,71491.0,71485.0,0.0014]
[1773556855509,0.041956,71492.0,71486.0,0.0014]
[1773556855710,0.041956,71492.0,71487.0,0.0014]
[1773556855909,0.041956,71492.0,71488.0,0.0014]
[1773556856209,0.041956,71492.0,71489.0,0.0014]
[1773556856405,0.041956,71492.0,71478.0,0.041964]
[1773556856704,0.041956,71492.0,71479.0,0.0014]
[1773556856901,0.041956,71492.0,71483.0,0.0014]
[1773556857817,0.08814851,71500.0,71476.0,0.16744208]
[1773556858003,0.04196,71485.0,71472.0,0.041967]
[1773556858204,0.04196,71485.0,71473.0,0.043367]
[1773556858401,0.04196,71485.0,71474.0,0.0014]
[1773556859011,0.041961,71484.0,71474.0,0.0014]
[1773556859212,0.041961,71484.0,71475.0,0.0014]
[1773556859815,0.041961,71484.0,71476.0,0.0014]
[1773556860421,0.041961,71484.0,71477.0,0.0014]
[1773556860611,0.041961,71484.0,71478.0,0.0014]
[1773556860807,0.041961,71484.0,71471.0,0.041968]
[1773556861008,0.041961,71484.0,71472.0,0.0014]
[1773556861513,0.041962,71483.0,71472.0,0.0014]
[1773556861719,0.0014,71498.0,71472.0,0.0014]
[1773556861911,0.041962,71483.0,71472.0,0.0014]
[1773556864216,0.041962,71483.0,71470.0,0.041968]
[1773556864408,0.08812115,71490.0,71471.0,0.0014]
[1773556864613,0.08812115,71490.0,71472.0,0.0014]
[1773556864814,0.08812115,71490.0,71473.0,0.0014]
[1773556865625,0.041953,71497.0,71473.0,0.0014]
[1773556867223,0.042953,71497.0,71473.0,0.0014]
[1773556867414,0.041962,71482.0,71473.0,0.0014]
[1773556867920,0.041963,71481.0,71473.0,0.0014]
[1773556868820,0.041962,71482.0,71473.0,0.0014]
[1773556876328,0.0014,71496.0,71473.0,0.0014]
[1773556877933,0.041962,71482.0,71473.0,0.0014]
[1773556881440,0.041955,71494.0,71462.0,0.041973]
[1773556881637,0.041966,71475.0,71463.0,0.0014]